bitfinex-derivatives/quotes_SOLF0:USTF0_20250505
["timestamp","ask_amount","ask_price","bid_price","bid_amount"]
[1746470417359,6.812,146.83,146.81,6.8124]
[1746470420164,6.2918,146.85,146.81,6.8124]
[1746470421354,6.8118,146.83,146.81,6.8124]
[1746470421558,6.8118,146.83,146.8,6.8128]
[1746470422165,6.8118,146.83,146.81,6.8125]
[1746470424368,6.8113,146.84,146.81,6.8125]
[1746470424767,6.8113,146.84,146.8,6.8127]
[1746470425067,6.8113,146.84,146.79,25.8]
[1746470425267,25.8,146.86,146.79,25.8]
[1746470425867,6.8108,146.85,146.79,25.8]
[1746470426266,6.8108,146.85,146.83,6.8115]
[1746470426962,32.6103,146.86,146.84,6.8111]
[1746470427464,6.8103,146.86,146.84,6.8111]
[1746470427666,6.8098,146.87,146.85,6.8106]
[1746470429171,31.6999,146.89,146.84,6.8109]
[1746470429868,6.8103,146.86,146.84,6.8109]
[1746470430268,31.6999,146.89,146.85,6.8105]
[1746470430569,31.6999,146.89,146.79,25.8]
[1746470431070,6.8099,146.87,146.85,6.8106]
[1746470431374,31.6999,146.89,146.81,11.33494795]
[1746470431770,6.8096,146.88,146.86,6.81]
[1746470432265,31.6999,146.89,146.81,11.33494795]
[1746470432472,11.33494795,146.94,146.81,11.33494795]
[1746470432681,539.5,146.97,146.8,13.6258]
[1746470432682,25.48,146.93,146.84,11.33494795]
[1746470432873,25.48,146.94,146.85,25.48]
[1746470433571,6.8086,146.9,146.87,6.8094]
[1746470434073,6.8086,146.9,146.85,25.48]
[1746470435173,6.8086,146.9,146.88,6.8091]
[1746470435370,6.8081,146.91,146.88,6.8091]
[1746470436269,6.8083,146.9,146.88,6.8091]
[1746470438270,6.8088,146.89,146.87,6.8096]
[1746470438875,36.81494795,146.94,146.85,25.48]
[1746470439277,11.33494795,146.91,146.82,25.48]
[1746470439574,29.5611,146.9,146.84,6.8108]
[1746470439774,31.5303,146.9,146.84,6.8108]
[1746470440278,31.5303,146.9,146.85,6.8104]
[1746470440577,6.8096,146.88,146.85,6.8104]
[1746470440876,31.5303,146.9,146.85,6.8104]
[1746470442676,6.8096,146.88,146.85,6.8104]
[1746470443075,31.5303,146.9,146.85,6.8104]
[1746470443875,6.8096,146.88,146.85,6.8104]
[1746470444876,31.5303,146.9,146.85,6.8104]
[1746470445579,6.8097,146.88,146.85,6.8104]
[1746470445879,31.5303,146.9,146.85,6.8104]
[1746470446778,6.8097,146.88,146.85,6.8104]
[1746470447278,6.8098,146.87,146.85,6.8104]
[1746470450885,6.8102,146.86,146.84,6.811]
[1746470451078,31.5303,146.9,146.82,25.48]
[1746470451485,6.8099,146.87,146.85,6.8106]
[1746470451674,31.5303,146.9,146.82,25.48]
[1746470452080,6.8095,146.88,146.82,25.48]
[1746470452281,31.5303,146.9,146.82,25.48]
[1746470452584,6.8095,146.88,146.86,6.8101]
[1746470453385,6.8097,146.87,146.85,6.8104]
[1746470454376,31.5303,146.9,146.82,25.48]
[1746470454879,6.809,146.89,146.82,25.48]
[1746470455277,25.48,146.9,146.84,11.33494795]
[1746470455489,25.06,146.93,146.84,11.33494795]
[1746470456282,6.8093,146.88,146.86,6.8099]
[1746470456881,25.06,146.93,146.82,25.48]
[1746470457388,6.8094,146.88,146.85,6.8105]
[1746470457687,6.8094,146.88,146.82,25.48]
[1746470458587,6.8099,146.87,146.82,25.48]
[1746470458787,25.06,146.93,146.82,25.48]
[1746470459787,6.8101,146.87,146.84,6.8108]
[1746470459989,25.06,146.93,146.84,6.8108]
[1746470460287,6.8102,146.86,146.84,6.8108]
[1746470460794,25.06,146.93,146.84,6.8108]
[1746470460989,6.81,146.87,146.82,25.48]
[1746470461489,25.06,146.93,146.82,25.48]
[1746470461688,25.06,146.93,146.84,6.8109]
[1746470462288,6.81,146.87,146.85,6.8106]
[1746470463089,6.8094,146.88,146.86,6.8102]
[1746470463290,6.8094,146.88,146.82,25.48]
[1746470463887,6.8094,146.88,146.86,6.8099]
[1746470464087,31.869,146.89,146.82,25.48]
[1746470464691,31.869,146.89,146.87,6.8094]
[1746470464886,6.809,146.89,146.87,6.8094]
[1746470465393,6.809,146.89,146.86,6.8099]
[1746470465592,6.8094,146.88,146.86,6.8099]
[1746470466090,6.809,146.89,146.87,6.8097]
[1746470466387,25.06,146.91,146.82,25.48]
[1746470466584,6.8093,146.88,146.86,6.8099]
[1746470471593,25.06,146.91,146.82,25.48]
[1746470471794,36.39494795,146.91,146.82,25.48]
[1746470472093,6.8104,146.86,146.84,6.811]
[1746470472495,36.39494795,146.91,146.82,25.48]
[1746470472888,6.81,146.87,146.85,6.8106]
[1746470473292,6.81,146.87,146.82,25.48]
[1746470473592,6.81,146.87,146.85,6.8106]
[1746470473893,6.8095,146.88,146.82,25.48]
[1746470474294,25.06,146.91,146.82,25.48]
[1746470475091,6.8099,146.87,146.85,6.8104]
[1746470475291,25.06,146.91,146.82,25.48]
[1746470476197,25.06,146.91,146.85,6.8105]
[1746470476695,6.8095,146.88,146.85,6.8105]
[1746470479398,6.8095,146.88,146.82,25.48]
[1746470479998,6.8095,146.88,146.85,6.8104]
[1746470480198,6.8098,146.87,146.85,6.8104]
[1746470485001,6.8095,146.88,146.82,25.48]
[1746470485405,25.06,146.91,146.82,25.48]
[1746470485698,6.8098,146.87,146.85,6.8105]
[1746470487302,6.8094,146.88,146.86,6.8102]
[1746470487603,7.24683555,146.89,146.82,32.72683555]
[1746470488002,6.8096,146.88,146.85,6.8103]
[1746470488401,6.8096,146.88,146.82,32.72683555]
[1746470488597,6.8096,146.88,146.86,6.81]
[1746470490205,7.24683555,146.89,146.87,6.8095]
[1746470490206,6.809,146.89,146.87,6.8095]
[1746470492415,32.18683555,146.91,146.86,6.8099]
[1746470492615,32.18683555,146.91,146.85,1.0]
[1746470493119,32.18683555,146.91,146.86,6.8099]
[1746470493713,6.8096,146.88,146.85,7.8104]
[1746470494218,6.8098,146.87,146.85,7.8104]
[1746470497214,6.8095,146.88,146.86,6.8102]
[1746470497419,6.8095,146.88,146.85,1.0]
[1746470498020,6.8095,146.88,146.85,7.8103]
[1746470498220,32.18683555,146.91,146.85,1.0]
[1746470498520,32.18683555,146.91,146.86,6.81]
[1746470499820,6.8095,146.88,146.86,6.81]
[1746470500723,6.8091,146.89,146.86,6.8098]
[1746470501927,6.8093,146.88,146.86,6.8098]
[1746470504627,6.8093,146.88,146.85,7.8104]
[1746470504822,6.8093,146.88,146.85,1.0]
[1746470505227,6.8097,146.87,146.85,7.8104]
[1746470505423,7.24683555,146.89,146.85,1.0]
[1746470506825,6.8102,146.86,146.85,1.0]
[1746470511332,14.05683555,146.87,146.85,1.0]
[1746470512332,14.05683555,146.87,146.85,7.8106]
[1746470514935,6.81,146.87,146.85,7.8106]
[1746470517237,14.05653555,146.88,146.85,7.8104]
[1746470517430,7.24683555,146.88,146.85,7.8104]
[1746470518338,6.8098,146.87,146.85,7.8104]
[1746470519339,6.8098,146.87,146.85,1.0]
[1746470519636,7.24683555,146.88,146.85,1.0]
[1746470519938,6.81,146.87,146.85,1.0]
[1746470520138,7.24683555,146.88,146.85,1.0]
[1746470520637,6.8101,146.87,146.85,1.0]
[1746470521239,6.8094,146.88,146.85,7.8106]
[1746470521635,24.92,146.89,146.85,1.0]
[1746470521835,6.8099,146.87,146.85,1.0]
[1746470522037,24.92,146.89,146.85,1.0]
[1746470522442,6.8097,146.88,146.85,7.8104]
[1746470523043,6.8098,146.87,146.85,7.8104]
[1746470523540,6.8098,146.87,146.85,1.0]
[1746470525044,6.8102,146.86,146.85,1.0]
[1746470525340,24.92,146.89,146.85,1.0]
[1746470525542,6.81,146.87,146.85,1.0]
[1746470526540,6.81,146.87,146.85,7.8105]
[1746470526745,6.81,146.87,146.85,1.0]
[1746470528040,6.8102,146.86,146.85,1.0]
[1746470529246,6.81,146.87,146.85,1.0]
[1746470530248,6.81,146.87,146.85,7.8106]
[1746470530945,6.81,146.87,146.85,1.0]
[1746470531448,6.81,146.87,146.85,7.8106]
[1746470531648,6.81,146.87,146.85,1.0]
[1746470533650,6.81,146.87,146.85,7.8106]
[1746470534750,6.8094,146.88,146.86,6.81]
[1746470534953,29.007,146.89,146.85,1.0]
[1746470535152,24.92,146.92,146.85,8.24683555]
[1746470535352,6.8087,146.9,146.87,6.8095]
[1746470535654,7.24683555,146.91,146.87,6.8095]
[1746470536149,6.8084,146.9,146.87,6.8095]
[1746470538257,6.8084,146.9,146.88,6.8092]
[1746470538851,7.24683555,146.91,146.87,6.8094]
[1746470539158,6.8089,146.89,146.87,6.8094]
[1746470541757,7.24683555,146.91,146.87,6.8094]
[1746470541966,6.8086,146.9,146.87,6.8094]
[1746470542155,7.24683555,146.91,146.87,6.8094]
[1746470542357,6.8088,146.89,146.87,6.8094]
[1746470544863,6.8094,146.88,146.86,6.81]
[1746470545265,7.24683555,146.91,146.86,6.81]
[1746470545553,6.8089,146.89,146.86,6.81]
[1746470546260,7.24683555,146.91,146.85,15.05733555]
[1746470546460,7.24683555,146.87,146.85,1.0]
[1746470547862,6.8102,146.86,146.85,1.0]
[1746470551865,6.8102,146.86,146.85,2.0]
[1746470556965,6.8116,146.83,146.82,205.21234504]
[1746470557166,7.24683555,146.83,146.77,7.24683555]
[1746470557363,6.8122,146.82,146.77,7.24683555]
[1746470557763,7.24683555,146.83,146.77,7.24683555]
[1746470557971,6.8123,146.82,146.79,6.8131]
[1746470558473,7.24683555,146.83,146.79,6.8131]
[1746470558870,6.8123,146.82,146.8,6.8128]
[1746470559072,32.14683555,146.84,146.77,7.24683555]
[1746470559463,6.8127,146.81,146.78,6.8135]
[1746470561277,32.14683555,146.84,146.79,6.8134]
[1746470562173,6.8129,146.81,146.78,6.8137]
[1746470563181,6.8129,146.81,146.79,6.8134]
[1746470563577,6.8129,146.81,146.77,7.24683555]
[1746470564181,6.8129,146.81,146.78,6.8136]
[1746470564474,6.8122,146.82,146.77,7.24683555]
[1746470564779,32.14683555,146.84,146.77,7.24683555]
[1746470565279,6.8121,146.82,146.8,6.8127]
[1746470568779,6.8125,146.81,146.79,6.8132]
[1746470569381,6.8123,146.82,146.79,6.8132]
[1746470570581,6.8126,146.81,146.79,6.8132]
[1746470570780,32.14683555,146.84,146.76,24.9]
[1746470570983,6.8134,146.79,146.76,24.9]
[1746470571382,6.8134,146.79,146.77,6.8141]
[1746470573582,7.24683555,146.82,146.78,6.8137]
[1746470574085,6.8133,146.8,146.76,24.9]
[1746470574385,7.24683555,146.82,146.77,7.24683555]
[1746470574585,6.8128,146.81,146.78,6.8137]
[1746470574984,7.24683555,146.82,146.77,7.24683555]
[1746470575186,6.8126,146.81,146.77,7.24683555]
[1746470576184,6.8126,146.81,146.78,6.8138]
[1746470576484,6.8126,146.81,146.77,7.24683555]
[1746470577086,6.8126,146.81,146.79,6.8132]
[1746470579184,6.8127,146.81,146.78,6.8136]
[1746470579386,7.24683555,146.82,146.78,6.8136]
[1746470579784,6.8126,146.81,146.78,6.8136]
[1746470580288,6.8126,146.81,146.79,6.8133]
[1746470581090,6.8126,146.81,146.78,6.8137]
[1746470581989,6.8126,146.81,146.79,6.8133]
[1746470584686,7.24683555,146.82,146.76,32.14683555]
[1746470584883,32.14683555,146.84,146.78,7.24683555]
[1746470585290,6.8118,146.83,146.8,6.8125]
[1746470585490,32.14683555,146.84,146.8,6.8125]
[1746470586190,6.8123,146.82,146.8,6.8125]
[1746470587093,6.8123,146.82,146.79,6.8132]
[1746470587292,32.14683555,146.84,146.79,6.8132]
[1746470587791,6.8123,146.82,146.79,6.8132]
[1746470588288,6.8123,146.82,146.8,6.813]
[1746470588592,6.8117,146.83,146.78,7.24683555]
[1746470588792,6.8117,146.83,146.8,6.8127]
[1746470590096,6.8117,146.83,146.81,6.8124]
[1746470590894,6.8117,146.83,146.8,6.8127]
[1746470591096,6.8121,146.82,146.8,6.8127]
[1746470595399,6.8121,146.82,146.79,6.8132]
[1746470596200,6.8121,146.82,146.8,6.8128]
[1746470605705,6.8118,146.83,146.81,6.8125]
[1746470606302,6.8113,146.84,146.82,6.812]
[1746470611512,17.99533555,146.85,146.82,6.812]
[1746470611813,17.99533555,146.85,146.83,6.8115]
[1746470614813,6.8111,146.84,146.82,6.8118]
[1746470615013,11.18443555,146.85,146.8,8.24683555]
[1746470615205,17.99533555,146.85,146.8,8.24683555]
[1746470616917,17.99533555,146.85,146.83,6.8113]
[1746470618216,17.99533555,146.85,146.8,8.24683555]
[1746470618217,6.8111,146.84,146.82,6.8118]
[1746470618616,17.99533555,146.85,146.83,6.8116]
[1746470619316,17.99523555,146.85,146.83,6.8112]
[1746470619517,11.18443555,146.85,146.8,8.24683555]
[1746470621218,17.99543555,146.85,146.82,6.8117]
[1746470622518,6.8111,146.84,146.82,6.8117]
[1746470626221,17.99533555,146.85,146.83,6.8116]
[1746470626413,11.18443555,146.85,146.83,6.8116]
[1746470626614,11.18443555,146.85,146.8,8.24683555]
[1746470626814,6.8111,146.84,146.82,6.8117]
[1746470628720,6.8116,146.83,146.81,6.8122]
[1746470629421,6.8116,146.83,146.82,6.812]
[1746470629623,6.8116,146.83,146.8,8.24683555]
[1746470629918,6.8116,146.83,146.8,1.0]
[1746470630120,6.8116,146.83,146.81,6.8122]
[1746470632218,11.18443555,146.85,146.8,1.0]
[1746470632428,11.18443555,146.85,146.82,6.812]
[1746470632719,11.18443555,146.85,146.8,1.0]
[1746470632913,6.8114,146.84,146.81,6.8123]
[1746470633321,6.8114,146.84,146.82,6.8119]
[1746470634224,6.8114,146.84,146.82,6.8119]
[1746470635823,7.24683555,146.83,146.8,1.0]
[1746470636024,7.25376892,146.82,146.8,1.0]
[1746470636524,6.8125,146.81,146.8,1.0]
[1746470641530,6.8121,146.82,146.8,1.0]
[1746470641930,6.8121,146.82,146.8,7.8127]
[1746470642131,31.5918,146.83,146.8,7.8127]
[1746470642431,11.19136892,146.85,146.8,1.0]
[1746470642619,11.19136892,146.85,146.82,6.8117]
[1746470642823,6.8111,146.84,146.82,6.8117]
[1746470643229,6.8111,146.84,146.81,6.8123]
[1746470645136,6.8123,146.82,146.8,1.0]
[1746470645335,7.25376892,146.83,146.8,1.0]
[1746470646237,6.8125,146.81,146.8,1.0]
[1746470647232,7.25376892,146.83,146.8,1.0]
[1746470647439,6.8122,146.82,146.8,1.0]
[1746470647940,6.8125,146.81,146.8,1.0]
[1746470650841,7.25376892,146.81,146.74,1.0]
[1746470651040,7.25376892,146.79,146.74,1.0]
[1746470651638,6.8148,146.77,146.74,7.8155]
[1746470652441,6.8149,146.76,146.74,7.8155]
[1746470652934,7.25376892,146.79,146.74,7.8155]
[1746470653134,6.8146,146.77,146.74,7.8155]
[1746470653741,7.25376892,146.79,146.74,7.8155]
[1746470654243,6.8146,146.77,146.74,7.8155]
[1746470657642,6.8142,146.78,146.75,6.815]
[1746470657842,6.8142,146.78,146.74,8.25376892]
[1746470658044,7.25376892,146.81,146.74,8.25376892]
[1746470658436,6.8136,146.79,146.77,6.8143]
[1746470658936,24.78,146.82,146.74,8.25376892]
[1746470659148,9.23016892,146.84,146.76,7.25376892]
[1746470659446,7.25376892,146.82,146.75,24.78]
[1746470659943,11.33577017,146.83,146.75,24.78]
[1746470660243,6.8128,146.81,146.78,6.8138]
[1746470660444,11.33577017,146.83,146.78,6.8138]
[1746470660843,26.7564,146.84,146.79,6.8133]
[1746470661349,26.7564,146.84,146.75,24.78]
[1746470661544,6.8128,146.81,146.78,6.8137]
[1746470661741,6.8128,146.81,146.75,24.78]
[1746470662447,26.7564,146.84,146.78,6.8137]
[1746470663242,6.8127,146.81,146.78,6.8137]
[1746470663648,26.7564,146.84,146.78,6.8137]
[1746470663847,6.8127,146.81,146.78,6.8137]
[1746470664052,6.8127,146.81,146.79,6.8134]
[1746470664850,6.8127,146.81,146.78,6.8137]
[1746470665646,6.8132,146.8,146.77,6.8141]
[1746470665857,26.7564,146.84,146.77,6.8141]
[1746470666155,11.33577017,146.83,146.75,24.78]
[1746470666346,11.33577017,146.83,146.74,206.31708683]
[1746470666752,6.8147,146.77,146.74,213.13268683]
[1746470667350,6.8147,146.77,146.75,6.815]
[1746470668254,6.8147,146.77,146.74,7.8155]
[1746470669452,6.8148,146.76,146.74,7.8155]
[1746470671956,6.8153,146.75,146.74,1.0]
[1746470673357,6.8151,146.76,146.74,1.0]
[1746470675266,6.8151,146.76,146.74,7.8157]
[1746470676170,6.8146,146.77,146.74,7.8157]
[1746470676770,6.1392,146.79,146.74,7.8157]
[1746470677162,6.1392,146.79,146.74,8.8157]
[1746470677969,6.8149,146.76,146.74,8.8157]
[1746470680371,6.1392,146.79,146.75,6.8153]
[1746470680975,6.8145,146.77,146.75,6.8153]
[1746470687578,6.8145,146.77,146.76,6.8148]
[1746470688281,6.8145,146.77,146.75,6.815]
[1746470689577,6.8141,146.78,146.76,6.8148]
[1746470690179,6.8141,146.78,146.75,6.8149]
[1746470690683,6.8141,146.78,146.76,6.8148]
[1746470691080,6.8141,146.78,146.74,2.0]
[1746470691282,6.8141,146.78,146.74,8.8154]
[1746470691684,6.8146,146.77,146.74,8.8154]
[1746470693084,6.815,146.76,146.74,8.8154]
[1746470694383,6.815,146.76,146.74,8.8157]
[1746470698191,6.8153,146.75,146.74,2.0]
[1746470699595,6.815,146.76,146.74,8.8157]
[1746470700294,6.8153,146.75,146.74,2.0]
[1746470702291,7.25615243,146.78,146.74,2.0]
[1746470702594,6.1392,146.79,146.74,2.0]
[1746470702795,6.8141,146.78,146.76,6.8148]
[1746470703191,6.1392,146.79,146.74,2.0]
[1746470703400,6.8143,146.78,146.75,6.8151]
[1746470703597,6.8143,146.78,146.74,2.0]
[1746470703791,6.8143,146.78,146.74,9.25615243]
[1746470703998,6.8143,146.78,146.76,6.8146]
[1746470704990,24.74,146.8,146.74,9.25615243]
[1746470705197,7.25615243,146.81,146.76,7.25615243]
[1746470705392,31.95615243,146.83,146.76,31.95615243]
[1746470705598,38.76795243,146.83,146.78,7.25615243]
[1746470705795,31.95615243,146.83,146.78,7.25615243]
[1746470706190,31.95615243,146.83,146.79,6.813]
[1746470706499,31.95615243,146.83,146.76,31.95615243]
[1746470706701,6.8127,146.81,146.78,6.8135]
[1746470707199,31.95615243,146.83,146.76,31.95615243]
[1746470707601,6.8128,146.81,146.79,6.8134]
[1746470708196,6.8123,146.82,146.79,6.8134]
[1746470709101,6.8123,146.82,146.8,6.8129]
[1746470710002,38.76795243,146.83,146.8,6.8129]
[1746470710199,24.7,146.88,146.8,7.25615243]
[1746470710501,6.8112,146.84,146.8,7.25615243]
[1746470710701,7.25615243,146.87,146.82,6.8118]
[1746470711203,6.811,146.85,146.82,6.8118]
[1746470711899,6.811,146.85,146.83,6.8115]
[1746470712304,6.8104,146.86,146.83,6.8115]
[1746470712599,24.7,146.88,146.82,7.25615243]
[1746470712800,24.7,146.88,146.84,7.25615243]
[1746470713195,1.9718,146.89,146.86,6.8101]
[1746470713697,8.7808,146.89,146.86,6.8101]
[1746470714297,1.9718,146.89,146.81,13.28117378]
[1746470714505,6.8084,146.9,146.81,15.22897378]
[1746470714701,6.8084,146.9,146.82,1.9789]
[1746470714903,6.8084,146.9,146.88,6.8092]
[1746470715307,6.8084,146.9,146.84,24.7]
[1746470716199,6.8084,146.9,146.87,6.8095]
[1746470716705,6.8089,146.89,146.84,24.7]
[1746470716905,24.7,146.91,146.84,24.7]
[1746470717305,31.5081,146.91,146.84,24.7]
[1746470717505,24.7,146.91,146.84,24.7]
[1746470717804,4.0278,146.93,146.84,24.7]
[1746470718004,6.8078,146.92,146.89,6.8085]
[1746470718906,6.8078,146.92,146.88,6.809]
[1746470719206,6.808,146.91,146.88,6.809]
[1746470721207,6.8085,146.9,146.88,6.809]
[1746470722806,6.8081,146.91,146.88,6.809]
[1746470723206,2.0032,146.93,146.88,6.809]
[1746470723908,6.8083,146.91,146.88,6.809]
[1746470724598,2.0032,146.93,146.84,24.7]
[1746470724805,11.32067378,146.91,146.84,24.7]
[1746470725503,11.32067378,146.91,146.85,6.8103]
[1746470725701,11.32067378,146.91,146.84,24.7]
[1746470725909,6.8097,146.87,146.85,6.8104]
[1746470726104,6.8097,146.87,146.84,24.7]
[1746470726609,6.8097,146.87,146.85,6.8106]
[1746470727110,6.8095,146.88,146.85,6.8106]
[1746470727409,6.8095,146.88,146.86,6.8101]
[1746470727810,6.809,146.89,146.86,6.8101]
[1746470728006,11.32067378,146.91,146.86,6.8101]
[1746470728612,6.8095,146.88,146.86,6.8101]
[1746470730311,6.809,146.89,146.86,6.8101]
[1746470730706,11.32067378,146.91,146.86,6.8101]
[1746470730908,6.8093,146.88,146.86,6.8101]
[1746470732715,6.8093,146.88,146.85,6.8104]
[1746470733213,6.8093,146.88,146.84,24.7]
[1746470733406,6.8093,146.88,146.85,6.8105]
[1746470737210,24.64,146.9,146.85,6.8105]
[1746470737621,6.8096,146.88,146.85,6.8105]
[1746470738217,6.8096,146.88,146.86,6.8101]
[1746470738418,6.8097,146.87,146.84,24.7]
[1746470739213,6.8095,146.88,146.84,24.7]
[1746470739413,24.64,146.9,146.84,24.7]
[1746470739819,24.64,146.9,146.85,6.8102]
[1746470740219,24.64,146.9,146.86,1.0]
[1746470740418,6.8095,146.88,146.86,7.8101]
[1746470741420,6.8095,146.88,146.86,1.0]
[1746470741723,6.8097,146.87,146.86,1.0]
[1746470743225,6.8095,146.88,146.86,7.8102]
[1746470743413,7.24629723,146.89,146.86,1.0]
[1746470743619,7.24629723,146.87,146.86,1.0]
[1746470744323,14.05599723,146.87,146.86,1.0]
[1746470749525,7.24629723,146.87,146.86,1.0]
[1746470750124,14.05599723,146.87,146.86,1.0]
[1746470762241,16.12819723,146.88,146.86,1.0]
[1746470762540,31.88629723,146.9,146.86,7.8098]
[1746470762843,7.24629723,146.88,146.86,1.0]
[1746470763446,6.8097,146.87,146.86,1.0]
[1746470765445,31.88629723,146.9,146.86,1.0]
[1746470766045,31.88629723,146.9,146.86,7.81]
[1746470766644,6.8092,146.89,146.86,7.81]
[1746470768448,38.69489723,146.9,146.87,6.8096]
[1746470768843,31.88629723,146.9,146.87,6.8096]
[1746470769150,38.69499723,146.9,146.87,6.8096]
[1746470769443,14.05499723,146.9,146.88,6.8091]
[1746470769650,6.8087,146.9,146.88,6.8091]
[1746470769852,6.8087,146.9,146.86,1.0]
[1746470770145,6.8087,146.9,146.88,6.8092]
[1746470770450,6.8079,146.91,146.87,7.24629723]
[1746470770648,7.24629723,146.92,146.88,6.8092]
[1746470771247,6.808,146.91,146.88,6.8092]
[1746470771449,7.24629723,146.92,146.88,6.8092]
[1746470771940,6.808,146.91,146.88,6.8092]
[1746470772147,7.24629723,146.9,146.86,7.8101]
[1746470772343,6.8092,146.89,146.86,7.8101]
[1746470772946,6.8092,146.89,146.87,6.8097]
[1746470773142,6.8092,146.89,146.86,1.0]
[1746470773650,6.8092,146.89,146.87,6.8096]
[1746470774551,6.8093,146.88,146.86,7.8099]
[1746470774850,7.24629723,146.9,146.86,1.0]
[1746470775251,6.8091,146.89,146.87,6.8097]
[1746470775550,7.24629723,146.9,146.86,1.0]
[1746470775946,6.809,146.89,146.86,7.8098]
[1746470776455,6.809,146.89,146.87,6.8097]
[1746470776646,14.05489723,146.9,146.86,1.0]
[1746470776953,14.05489723,146.9,146.87,6.8096]
[1746470777154,14.05489723,146.9,146.86,1.0]
[1746470777654,14.05489723,146.9,146.87,6.8094]
[1746470779256,14.05489723,146.9,146.88,6.8092]
[1746470783260,7.24629723,146.9,146.88,6.8092]
[1746470784260,7.24629723,146.9,146.89,6.8088]
[1746470785355,7.24629723,146.92,146.9,6.808]
[1746470785860,7.24629723,146.92,146.91,6.8079]
[1746470787064,24.62,146.93,146.92,6.8074]
[1746470787763,28.5777,146.96,146.89,7.24629723]
[1746470788060,7.24629723,146.97,146.91,7.24629723]
[1746470788260,31.84629723,146.99,146.96,6.8053]
[1746470788464,7.24629723,146.97,146.91,7.24629723]
[1746470788661,7.24629723,146.97,146.89,31.84629723]
[1746470789165,6.8056,146.96,146.89,31.84629723]
[1746470789662,6.8056,146.96,146.92,6.8072]
[1746470790056,2.0161,146.98,146.89,24.6]
[1746470790564,6.8067,146.94,146.89,24.6]
[1746470790755,2.0161,146.98,146.9,6.808]
[1746470791465,6.807,146.93,146.9,6.808]
[1746470791966,6.807,146.93,146.91,6.8078]
[1746470792359,6.8067,146.94,146.91,6.8078]
[1746470793166,6.8067,146.94,146.92,6.8073]
[1746470795068,6.8062,146.95,146.93,6.8069]
[1746470795272,2.0161,146.98,146.89,35.9120401]
[1746470795568,6.8055,146.97,146.94,6.8062]
[1746470795763,24.6,146.99,146.89,35.9120401]
[1746470796168,6.805,146.98,146.95,6.8057]
[1746470797371,6.805,146.98,146.96,6.8053]
[1746470798470,6.8051,146.97,146.95,6.8058]
[1746470798659,24.6,146.99,146.95,6.8058]
[1746470799165,6.8049,146.98,146.95,6.8058]
[1746470799869,6.8034,147.01,146.98,6.8043]
[1746470800569,6.8034,147.01,146.99,6.8041]
[1746470800771,6.8034,147.01,146.93,26.6257]
[1746470801068,24.56,147.03,146.93,26.6257]
[1746470801269,24.56,147.03,146.93,30.8581]
[1746470801666,6.8038,147.0,146.98,6.8046]
[1746470801867,24.56,147.03,146.98,6.8046]
[1746470802570,24.56,147.03,146.99,6.8041]
[1746470803074,6.8029,147.02,146.99,6.8041]
[1746470803370,24.56,147.03,147.0,6.8037]
[1746470803566,6.803,147.02,146.93,204.09123747]
[1746470804568,6.803,147.02,146.99,6.8039]
[1746470804870,6.8032,147.01,146.99,6.8039]
[1746470805470,24.56,147.03,146.97,24.56]
[1746470805670,11.3120401,147.02,146.93,197.79313747]
[1746470806173,6.8049,146.98,146.95,6.8056]
[1746470806373,6.8049,146.98,146.93,197.79313747]